[Event "Titled Tuesday Blitz July 25 Early 2023"]
[White "Rodriguez Santiago, Jaime"]
[Black "Sreyas Payyappat"]
[WhiteFideId "3100898"]
[BlackFideId "46674969"]
[WhiteElo "2351"]
[BlackElo "2509"]
[Result "0-1"]
[Round "2"]
[TimeControl "180+2"]
[Date "2023.07.25"]
[WhiteClock "0:00:47"]
[BlackClock "0:01:50"]
[Board "174"]

1. d4 {[%clk 0:03:00]}  Nf6 {[%clk 0:02:54]} 2. c4 {[%clk 0:02:56]}  c5 {[%clk 0:02:52]} 3. d5 {[%clk 0:02:55]}  e6 {[%clk 0:02:52]} 4. Nc3 {[%clk 0:02:55]}  exd5 {[%clk 0:02:53]} 5. cxd5 {[%clk 0:02:55]}  d6 {[%clk 0:02:53]} 6. e4 {[%clk 0:02:56]}  g6 {[%clk 0:02:53]} 7. f4 {[%clk 0:02:54]}  Bg7 {[%clk 0:02:53]} 8. Bb5+ {[%clk 0:02:54]}  Nfd7 {[%clk 0:02:53]} 9. a4 {[%clk 0:02:51]}  O-O {[%clk 0:02:52]} 10. Nf3 {[%clk 0:02:50]}  Na6 {[%clk 0:02:49]} 11. O-O {[%clk 0:02:49]}  Nb4 {[%clk 0:02:49]} 12. Nd2 {[%clk 0:02:42]}  a6 {[%clk 0:02:47]} 13. Be2 {[%clk 0:02:41]}  f5 {[%clk 0:02:41]} 14. Nc4 {[%clk 0:02:33]}  Qe7 {[%clk 0:02:29]} 15. e5 {[%clk 0:02:19]}  dxe5 {[%clk 0:02:22]} 16. d6 {[%clk 0:02:18]}  Qf7 {[%clk 0:02:16]} 17. fxe5 {[%clk 0:01:49]}  Nxe5 {[%clk 0:02:15]} 18. Nb6 {[%clk 0:01:47]}  Rb8 {[%clk 0:02:12]} 19. Bf4 {[%clk 0:01:47]}  Be6 {[%clk 0:02:04]} 20. Bxe5 {[%clk 0:01:17]}  Bxe5 {[%clk 0:02:05]} 21. Bf3 {[%clk 0:01:16]}  Rfd8 {[%clk 0:02:03]} 22. d7 {[%clk 0:01:11]}  Bxd7 {[%clk 0:01:57]} 23. Nxd7 {[%clk 0:01:08]}  Rxd7 {[%clk 0:01:58]} 24. Qe2 {[%clk 0:01:05]}  Re8 {[%clk 0:01:54]} 25. Kh1 {[%clk 0:00:52]}  Bxc3 {[%clk 0:01:51]} 26. Qf2 {[%clk 0:00:47]}  Bd4 {[%clk 0:01:50]} 0-1


[Site "https://www.chess.com"]

[Event "Titled Tuesday Blitz July 25 Early 2023"]
[White "Turzo, Attila"]
[Black "Slavin, Alexey"]
[WhiteFideId "704954"]
[BlackFideId "24104388"]
[WhiteElo "2507"]
[BlackElo "2347"]
[Result "1/2-1/2"]
[Round "2"]
[TimeControl "180+2"]
[Date "2023.07.25"]
[WhiteClock "0:00:17"]
[BlackClock "0:00:16"]
[Board "175"]

1. d4 {[%clk 0:03:00]}  Nc6 {[%clk 0:02:59]} 2. Nf3 {[%clk 0:02:57]}  d6 {[%clk 0:02:59]} 3. g3 {[%clk 0:02:51]}  Bg4 {[%clk 0:02:59]} 4. Bg2 {[%clk 0:02:51]}  e5 {[%clk 0:03:00]} 5. d5 {[%clk 0:02:47]}  Nce7 {[%clk 0:02:59]} 6. c4 {[%clk 0:02:40]}  Nf6 {[%clk 0:02:58]} 7. Nc3 {[%clk 0:02:39]}  Ng6 {[%clk 0:02:57]} 8. h3 {[%clk 0:02:35]}  Bd7 {[%clk 0:02:57]} 9. e4 {[%clk 0:02:31]}  Qc8 {[%clk 0:02:56]} 10. Be3 {[%clk 0:02:31]}  h6 {[%clk 0:02:56]} 11. Qc2 {[%clk 0:02:20]}  Be7 {[%clk 0:02:55]} 12. O-O-O {[%clk 0:02:20]}  a6 {[%clk 0:02:55]} 13. Kb1 {[%clk 0:02:12]}  O-O {[%clk 0:02:54]} 14. Rc1 {[%clk 0:01:56]}  b5 {[%clk 0:02:41]} 15. Nd2 {[%clk 0:01:34]}  b4 {[%clk 0:02:34]} 16. Ne2 {[%clk 0:01:32]}  c5 {[%clk 0:02:32]} 17. f4 {[%clk 0:01:23]}  exf4 {[%clk 0:02:28]} 18. gxf4 {[%clk 0:01:23]}  Nh4 {[%clk 0:02:25]} 19. Bf1 {[%clk 0:01:19]}  Nh7 {[%clk 0:02:14]} 20. Ka1 {[%clk 0:01:17]}  a5 {[%clk 0:02:00]} 21. Ng1 {[%clk 0:01:15]}  a4 {[%clk 0:01:58]} 22. Qd1 {[%clk 0:01:16]}  a3 {[%clk 0:01:51]} 23. b3 {[%clk 0:01:16]}  Bf6+ {[%clk 0:01:50]} 24. Kb1 {[%clk 0:01:16]}  Re8 {[%clk 0:01:34]} 25. Bd3 {[%clk 0:01:12]}  Qd8 {[%clk 0:01:29]} 26. Qh5 {[%clk 0:01:08]}  Bb2 {[%clk 0:01:23]} 27. Re1 {[%clk 0:01:04]}  Qf6 {[%clk 0:01:20]} 28. e5 {[%clk 0:00:57]}  dxe5 {[%clk 0:01:18]} 29. Ne4 {[%clk 0:00:55]}  Qd8 {[%clk 0:01:03]} 30. Bxc5 {[%clk 0:00:51]}  exf4 {[%clk 0:00:59]} 31. Nf3 {[%clk 0:00:44]}  Nxf3 {[%clk 0:00:47]} 32. Qxf3 {[%clk 0:00:45]}  Bf5 {[%clk 0:00:44]} 33. Bxb4 {[%clk 0:00:35]}  Ng5 {[%clk 0:00:39]} 34. Nxg5 {[%clk 0:00:33]}  Bxd3+ {[%clk 0:00:38]} 35. Qxd3 {[%clk 0:00:34]}  hxg5 {[%clk 0:00:38]} 36. Bc3 {[%clk 0:00:32]}  Bxc3 {[%clk 0:00:34]} 37. Qxc3 {[%clk 0:00:32]}  Qd7 {[%clk 0:00:30]} 38. Re5 {[%clk 0:00:25]}  Rxe5 {[%clk 0:00:25]} 39. Qxe5 {[%clk 0:00:26]}  Re8 {[%clk 0:00:19]} 40. Qxg5 {[%clk 0:00:26]}  f3 {[%clk 0:00:19]} 41. Rg1 {[%clk 0:00:21]}  g6 {[%clk 0:00:19]} 42. Qf6 {[%clk 0:00:19]}  Qxh3 {[%clk 0:00:15]} 43. Rxg6+ {[%clk 0:00:15]}  fxg6 {[%clk 0:00:14]} 44. Qxg6+ {[%clk 0:00:15]}  Kf8 {[%clk 0:00:14]} 45. Qf6+ {[%clk 0:00:16]}  Kg8 {[%clk 0:00:15]} 46. Qg6+ {[%clk 0:00:16]}  Kf8 {[%clk 0:00:15]} 47. Qf6+ {[%clk 0:00:17]}  Kg8 {[%clk 0:00:16]} 48. Qg6+ {[%clk 0:00:17]} 1/2-1/2


[Site "https://www.chess.com"]

[Event "Titled Tuesday Blitz July 25 Early 2023"]
[White "morozcoma"]
[Black "ATM622"]
[WhiteElo "2345"]
[BlackElo "2505"]
[Result "0-1"]
[Round "2"]
[TimeControl "180+2"]
[Date "2023.07.25"]
[WhiteClock "0:00:16"]
[BlackClock "0:00:40"]
[Board "176"]

1. e4 {[%clk 0:03:00]}  c6 {[%clk 0:02:56]} 2. Nc3 {[%clk 0:03:01]}  d5 {[%clk 0:02:54]} 3. Nf3 {[%clk 0:03:01]}  dxe4 {[%clk 0:02:52]} 4. Nxe4 {[%clk 0:03:02]}  Bf5 {[%clk 0:02:52]} 5. Ng3 {[%clk 0:03:01]}  Bg6 {[%clk 0:02:52]} 6. h4 {[%clk 0:03:02]}  h6 {[%clk 0:02:51]} 7. Ne5 {[%clk 0:02:59]}  Bh7 {[%clk 0:02:50]} 8. Bc4 {[%clk 0:02:58]}  e6 {[%clk 0:02:49]} 9. Qh5 {[%clk 0:02:55]}  Qe7 {[%clk 0:02:31]} 10. d4 {[%clk 0:02:54]}  Nf6 {[%clk 0:02:30]} 11. Qe2 {[%clk 0:02:53]}  g6 {[%clk 0:02:23]} 12. Bd2 {[%clk 0:02:42]}  Bg7 {[%clk 0:02:20]} 13. O-O-O {[%clk 0:02:40]}  O-O {[%clk 0:02:14]} 14. Bd3 {[%clk 0:02:38]}  Nbd7 {[%clk 0:02:06]} 15. Kb1 {[%clk 0:02:28]}  c5 {[%clk 0:02:01]} 16. h5 {[%clk 0:02:07]}  g5 {[%clk 0:01:49]} 17. Nxd7 {[%clk 0:02:05]}  Qxd7 {[%clk 0:01:36]} 18. Bxh7+ {[%clk 0:01:59]}  Kxh7 {[%clk 0:01:35]} 19. dxc5 {[%clk 0:01:57]}  Qd5 {[%clk 0:01:34]} 20. Bc3 {[%clk 0:01:51]}  Qxc5 {[%clk 0:01:28]} 21. Bxf6 {[%clk 0:01:25]}  Bxf6 {[%clk 0:01:26]} 22. Ne4 {[%clk 0:01:25]}  Qe5 {[%clk 0:01:22]} 23. Nxf6+ {[%clk 0:01:26]}  Qxf6 {[%clk 0:01:22]} 24. Rd7 {[%clk 0:01:26]}  Rab8 {[%clk 0:01:17]} 25. f3 {[%clk 0:01:15]}  Rfd8 {[%clk 0:01:16]} 26. Qe4+ {[%clk 0:01:11]}  Kg7 {[%clk 0:01:14]} 27. Rxb7 {[%clk 0:01:11]}  Rxb7 {[%clk 0:01:12]} 28. Qxb7 {[%clk 0:01:11]}  Rd2 {[%clk 0:01:13]} 29. Qxa7 {[%clk 0:01:02]}  Rxg2 {[%clk 0:01:12]} 30. Qe3 {[%clk 0:00:54]}  Rg3 {[%clk 0:01:10]} 31. Rf1 {[%clk 0:00:49]}  g4 {[%clk 0:01:07]} 32. a4 {[%clk 0:00:43]}  Rxf3 {[%clk 0:01:06]} 33. Rxf3 {[%clk 0:00:41]}  Qxf3 {[%clk 0:00:59]} 34. Qd4+ {[%clk 0:00:41]}  Kh7 {[%clk 0:00:59]} 35. a5 {[%clk 0:00:40]}  g3 {[%clk 0:00:47]} 36. a6 {[%clk 0:00:29]}  Qf1+ {[%clk 0:00:47]} 37. Ka2 {[%clk 0:00:27]}  Qxa6+ {[%clk 0:00:47]} 38. Kb3 {[%clk 0:00:27]}  Qb5+ {[%clk 0:00:47]} 39. Kc3 {[%clk 0:00:27]}  Qf5 {[%clk 0:00:42]} 40. Kd2 {[%clk 0:00:26]}  g2 {[%clk 0:00:42]} 41. b4 {[%clk 0:00:20]}  Qg5+ {[%clk 0:00:41]} 42. Ke2 {[%clk 0:00:16]}  g1=Q {[%clk 0:00:40]} 0-1


[Site "https://www.chess.com"]

[Event "Titled Tuesday Blitz July 25 Early 2023"]
[White "Smiechu"]
[Black "Padmini, Rout"]
[BlackFideId "5029295"]
[WhiteElo "2343"]
[BlackElo "2503"]
[Result "1-0"]
[Round "2"]
[TimeControl "180+2"]
[Date "2023.07.25"]
[WhiteClock "0:00:19"]
[BlackClock "0:00:01"]
[Board "178"]

1. e4 {[%clk 0:03:00]}  d5 {[%clk 0:02:57]} 2. exd5 {[%clk 0:03:00]}  Nf6 {[%clk 0:02:58]} 3. Nf3 {[%clk 0:03:00]}  Nxd5 {[%clk 0:02:55]} 4. d4 {[%clk 0:03:01]}  Bg4 {[%clk 0:02:45]} 5. c4 {[%clk 0:02:59]}  Nf6 {[%clk 0:02:44]} 6. Be2 {[%clk 0:02:59]}  e6 {[%clk 0:02:41]} 7. O-O {[%clk 0:02:57]}  c6 {[%clk 0:02:36]} 8. Nc3 {[%clk 0:02:57]}  Nbd7 {[%clk 0:02:33]} 9. Be3 {[%clk 0:02:57]}  Be7 {[%clk 0:02:27]} 10. Ne5 {[%clk 0:02:53]}  Bxe2 {[%clk 0:02:20]} 11. Qxe2 {[%clk 0:02:53]}  Nxe5 {[%clk 0:02:19]} 12. dxe5 {[%clk 0:02:53]}  Nd7 {[%clk 0:02:19]} 13. Rad1 {[%clk 0:02:50]}  Qc7 {[%clk 0:02:14]} 14. f4 {[%clk 0:02:50]}  Bc5 {[%clk 0:02:08]} 15. Ne4 {[%clk 0:02:46]}  Bxe3+ {[%clk 0:02:05]} 16. Qxe3 {[%clk 0:02:47]}  O-O {[%clk 0:02:05]} 17. Qg3 {[%clk 0:02:33]}  f6 {[%clk 0:01:52]} 18. Rxd7 {[%clk 0:02:23]}  Qxd7 {[%clk 0:01:51]} 19. Nxf6+ {[%clk 0:02:23]}  Rxf6 {[%clk 0:01:50]} 20. exf6 {[%clk 0:02:24]}  Qd4+ {[%clk 0:01:50]} 21. Kh1 {[%clk 0:02:24]}  Qxf6 {[%clk 0:01:50]} 22. Rd1 {[%clk 0:02:09]}  Rf8 {[%clk 0:01:45]} 23. Rd7 {[%clk 0:02:05]}  Qxb2 {[%clk 0:01:37]} 24. h3 {[%clk 0:02:04]}  a5 {[%clk 0:00:56]} 25. a4 {[%clk 0:02:00]}  g6 {[%clk 0:00:34]} 26. Qe1 {[%clk 0:01:12]}  Rf7 {[%clk 0:00:18]} 27. Rd8+ {[%clk 0:00:28]}  Kg7 {[%clk 0:00:17]} 28. g3 {[%clk 0:00:28]}  Re7 {[%clk 0:00:02]} 29. Rd2 {[%clk 0:00:24]}  Qc3 {[%clk 0:00:01]} 30. Qe2 {[%clk 0:00:19]} 1-0


[Site "https://www.chess.com"]

[Event "Titled Tuesday Blitz July 25 Early 2023"]
[White "Makhmudov, Shukhrat"]
[Black "NigelDwarf"]
[WhiteFideId "14200775"]
[WhiteElo "2341"]
[BlackElo "2503"]
[Result "0-1"]
[Round "2"]
[TimeControl "180+2"]
[Date "2023.07.25"]
[WhiteClock "0:00:35"]
[BlackClock "0:01:17"]
[Board "180"]

1. e4 {[%clk 0:03:00]}  c5 {[%clk 0:02:58]} 2. Nf3 {[%clk 0:03:00]}  d6 {[%clk 0:02:59]} 3. d4 {[%clk 0:03:01]}  Nf6 {[%clk 0:02:57]} 4. Nc3 {[%clk 0:02:58]}  cxd4 {[%clk 0:02:56]} 5. Nxd4 {[%clk 0:02:58]}  a6 {[%clk 0:02:56]} 6. h3 {[%clk 0:02:57]}  e6 {[%clk 0:02:55]} 7. g4 {[%clk 0:02:56]}  Be7 {[%clk 0:02:56]} 8. g5 {[%clk 0:02:55]}  Nfd7 {[%clk 0:02:55]} 9. h4 {[%clk 0:02:55]}  b5 {[%clk 0:02:55]} 10. a3 {[%clk 0:02:54]}  Bb7 {[%clk 0:02:54]} 11. Bg2 {[%clk 0:02:54]}  Nc6 {[%clk 0:02:53]} 12. Be3 {[%clk 0:02:43]}  Nc5 {[%clk 0:02:48]} 13. Qe2 {[%clk 0:02:24]}  O-O {[%clk 0:02:43]} 14. O-O-O {[%clk 0:02:23]}  b4 {[%clk 0:02:26]} 15. Nxc6 {[%clk 0:02:19]}  Bxc6 {[%clk 0:02:27]} 16. axb4 {[%clk 0:02:09]}  Na4 {[%clk 0:02:27]} 17. Nxa4 {[%clk 0:02:08]}  Bxa4 {[%clk 0:02:26]} 18. b3 {[%clk 0:02:06]}  Bb5 {[%clk 0:02:25]} 19. c4 {[%clk 0:02:04]}  Bc6 {[%clk 0:02:24]} 20. Bd4 {[%clk 0:01:52]}  Qb8 {[%clk 0:02:22]} 21. Bc3 {[%clk 0:01:51]}  Rc8 {[%clk 0:02:18]} 22. Kb2 {[%clk 0:01:50]}  Ra7 {[%clk 0:02:02]} 23. f4 {[%clk 0:01:42]}  a5 {[%clk 0:01:57]} 24. b5 {[%clk 0:01:40]}  a4 {[%clk 0:01:57]} 25. Ra1 {[%clk 0:01:22]}  a3+ {[%clk 0:01:41]} 26. Ka2 {[%clk 0:01:22]}  Bxb5 {[%clk 0:01:40]} 27. Bd4 {[%clk 0:00:57]}  Rac7 {[%clk 0:01:33]} 28. f5 {[%clk 0:00:42]}  e5 {[%clk 0:01:18]} 29. f6 {[%clk 0:00:35]}  Rxc4 {[%clk 0:01:17]} 0-1


[Site "https://www.chess.com"]

[Event "Titled Tuesday Blitz July 25 Early 2023"]
[White "Andrews, Todd"]
[Black "Ginzburg, Yakov"]
[WhiteFideId "2012456"]
[BlackFideId "4157176"]
[WhiteElo "2334"]
[BlackElo "2502"]
[Result "1-0"]
[Round "2"]
[TimeControl "180+2"]
[Date "2023.07.25"]
[WhiteClock "0:00:50"]
[BlackClock "0:00:02"]
[Board "182"]

1. e4 {[%clk 0:02:46]}  c5 {[%clk 0:02:59]} 2. Nf3 {[%clk 0:02:45]}  e6 {[%clk 0:02:59]} 3. d3 {[%clk 0:02:45]}  d5 {[%clk 0:02:59]} 4. g3 {[%clk 0:02:46]}  dxe4 {[%clk 0:02:57]} 5. dxe4 {[%clk 0:02:45]}  Qxd1+ {[%clk 0:02:57]} 6. Kxd1 {[%clk 0:02:46]}  b6 {[%clk 0:02:57]} 7. Bb5+ {[%clk 0:02:44]}  Nd7 {[%clk 0:02:56]} 8. Ke2 {[%clk 0:02:42]}  a6 {[%clk 0:02:51]} 9. Bc6 {[%clk 0:02:42]}  Ra7 {[%clk 0:02:52]} 10. Rd1 {[%clk 0:02:40]}  Rc7 {[%clk 0:02:45]} 11. Ne5 {[%clk 0:02:30]}  f6 {[%clk 0:02:45]} 12. Nxd7 {[%clk 0:02:28]}  Bxd7 {[%clk 0:02:38]} 13. Rxd7 {[%clk 0:02:27]}  Rxd7 {[%clk 0:02:38]} 14. Nc3 {[%clk 0:02:24]}  Ne7 {[%clk 0:02:37]} 15. Bxd7+ {[%clk 0:02:24]}  Kxd7 {[%clk 0:02:37]} 16. Be3 {[%clk 0:02:19]}  h5 {[%clk 0:02:06]} 17. Rd1+ {[%clk 0:02:13]}  Kc7 {[%clk 0:02:05]} 18. f4 {[%clk 0:02:03]}  h4 {[%clk 0:02:04]} 19. g4 {[%clk 0:02:03]}  h3 {[%clk 0:02:01]} 20. Kf3 {[%clk 0:02:02]}  g6 {[%clk 0:01:19]} 21. Ne2 {[%clk 0:01:37]}  f5 {[%clk 0:01:12]} 22. gxf5 {[%clk 0:01:24]}  gxf5 {[%clk 0:01:08]} 23. e5 {[%clk 0:01:16]}  Rg8 {[%clk 0:00:50]} 24. Rg1 {[%clk 0:01:15]}  Ng6 {[%clk 0:00:43]} 25. Rg3 {[%clk 0:01:10]}  Nh4+ {[%clk 0:00:14]} 26. Kf2 {[%clk 0:01:10]}  Rg4 {[%clk 0:00:13]} 27. Rxh3 {[%clk 0:01:06]}  Be7 {[%clk 0:00:11]} 28. Rg3 {[%clk 0:01:03]}  Kc6 {[%clk 0:00:09]} 29. Rxg4 {[%clk 0:01:03]}  fxg4 {[%clk 0:00:10]} 30. Nc3 {[%clk 0:01:02]}  Nf5 {[%clk 0:00:09]} 31. Bd2 {[%clk 0:00:59]}  Bh4+ {[%clk 0:00:09]} 32. Kg2 {[%clk 0:01:00]}  b5 {[%clk 0:00:09]} 33. Ne4 {[%clk 0:00:56]}  Kd5 {[%clk 0:00:09]} 34. Nf6+ {[%clk 0:00:56]}  Kc6 {[%clk 0:00:09]} 35. Nxg4 {[%clk 0:00:56]}  Nd4 {[%clk 0:00:09]} 36. c3 {[%clk 0:00:55]}  Nf5 {[%clk 0:00:07]} 37. Ne3 {[%clk 0:00:56]}  Nxe3+ {[%clk 0:00:02]} 38. Bxe3 {[%clk 0:00:57]}  Kd5 {[%clk 0:00:02]} 39. Kf3 {[%clk 0:00:57]}  c4 {[%clk 0:00:02]} 40. Kg4 {[%clk 0:00:57]}  Be7 {[%clk 0:00:02]} 41. h4 {[%clk 0:00:56]}  Ke4 {[%clk 0:00:03]} 42. Bb6 {[%clk 0:00:53]}  Bxh4 {[%clk 0:00:01]} 43. Kxh4 {[%clk 0:00:53]}  Kxf4 {[%clk 0:00:02]} 44. Bd4 {[%clk 0:00:52]}  a5 {[%clk 0:00:03]} 45. Kh5 {[%clk 0:00:52]}  Kf5 {[%clk 0:00:02]} 46. Kh6 {[%clk 0:00:52]}  b4 {[%clk 0:00:02]} 47. Kg7 {[%clk 0:00:51]}  a4 {[%clk 0:00:02]} 48. a3 {[%clk 0:00:50]}  Ke4 {[%clk 0:00:02]} 49. Kf6 {[%clk 0:00:50]}  bxa3 {[%clk 0:00:02]} 50. bxa3 {[%clk 0:00:50]}  Kd5 {[%clk 0:00:02]} 51. Ke7 {[%clk 0:00:50]} 1-0


[Site "https://www.chess.com"]

[Event "Titled Tuesday Blitz July 25 Early 2023"]
[White "Roberson, Peter T"]
[Black "Altun, Arda"]
[WhiteFideId "412384"]
[BlackFideId "34511580"]
[WhiteElo "2499"]
[BlackElo "2328"]
[Result "1/2-1/2"]
[Round "2"]
[TimeControl "180+2"]
[Date "2023.07.25"]
[WhiteClock "0:00:05"]
[BlackClock "0:00:21"]
[Board "185"]

1. e4 {[%clk 0:02:36]}  c6 {[%clk 0:02:57]} 2. d4 {[%clk 0:02:35]}  d5 {[%clk 0:02:58]} 3. Nd2 {[%clk 0:02:35]}  dxe4 {[%clk 0:02:55]} 4. Nxe4 {[%clk 0:02:36]}  Bf5 {[%clk 0:02:55]} 5. Nc5 {[%clk 0:02:36]}  Nd7 {[%clk 0:02:52]} 6. Nxb7 {[%clk 0:02:34]}  Qc7 {[%clk 0:02:39]} 7. Nc5 {[%clk 0:02:34]}  Nxc5 {[%clk 0:02:38]} 8. dxc5 {[%clk 0:02:35]}  Rd8 {[%clk 0:02:32]} 9. Bd3 {[%clk 0:02:29]}  e5 {[%clk 0:02:27]} 10. Qe2 {[%clk 0:02:17]}  Bxd3 {[%clk 0:02:20]} 11. cxd3 {[%clk 0:02:18]}  Bxc5 {[%clk 0:02:19]} 12. Nf3 {[%clk 0:02:18]}  f6 {[%clk 0:02:15]} 13. O-O {[%clk 0:01:40]}  Ne7 {[%clk 0:02:05]} 14. Be3 {[%clk 0:01:34]}  Rd5 {[%clk 0:02:05]} 15. Rac1 {[%clk 0:01:25]}  Qd6 {[%clk 0:01:45]} 16. Bxc5 {[%clk 0:01:17]}  Rxc5 {[%clk 0:01:46]} 17. Rxc5 {[%clk 0:01:14]}  Qxc5 {[%clk 0:01:47]} 18. d4 {[%clk 0:01:14]}  exd4 {[%clk 0:01:36]} 19. Re1 {[%clk 0:01:05]}  Qd6 {[%clk 0:01:18]} 20. Nxd4 {[%clk 0:00:55]}  Kf7 {[%clk 0:01:16]} 21. Qc4+ {[%clk 0:00:47]}  Qd5 {[%clk 0:01:13]} 22. Qxd5+ {[%clk 0:00:19]}  cxd5 {[%clk 0:01:14]} 23. Rc1 {[%clk 0:00:17]}  Rc8 {[%clk 0:01:08]} 24. Rxc8 {[%clk 0:00:17]}  Nxc8 {[%clk 0:01:09]} 25. f3 {[%clk 0:00:17]}  g6 {[%clk 0:01:05]} 26. Kf2 {[%clk 0:00:18]}  Ke7 {[%clk 0:01:05]} 27. Ke3 {[%clk 0:00:19]}  Kd6 {[%clk 0:01:06]} 28. b4 {[%clk 0:00:17]}  a6 {[%clk 0:01:05]} 29. Kd3 {[%clk 0:00:15]}  Nb6 {[%clk 0:01:03]} 30. Nb3 {[%clk 0:00:15]}  Nd7 {[%clk 0:00:59]} 31. Kd4 {[%clk 0:00:15]}  Ne5 {[%clk 0:00:49]} 32. Nc5 {[%clk 0:00:13]}  Nc6+ {[%clk 0:00:50]} 33. Kc3 {[%clk 0:00:14]}  Nb8 {[%clk 0:00:29]} 34. a4 {[%clk 0:00:14]}  Kc6 {[%clk 0:00:29]} 35. Kd4 {[%clk 0:00:14]}  Kd6 {[%clk 0:00:29]} 36. h4 {[%clk 0:00:12]}  Nc6+ {[%clk 0:00:24]} 37. Kc3 {[%clk 0:00:12]}  Nb8 {[%clk 0:00:17]} 38. g4 {[%clk 0:00:13]}  h5 {[%clk 0:00:17]} 39. gxh5 {[%clk 0:00:11]}  gxh5 {[%clk 0:00:18]} 40. Nd3 {[%clk 0:00:10]}  Nc6 {[%clk 0:00:18]} 41. Nf4 {[%clk 0:00:09]}  Ne5 {[%clk 0:00:19]} 42. Nxh5 {[%clk 0:00:09]}  Nxf3 {[%clk 0:00:19]} 43. Nxf6 {[%clk 0:00:04]}  Nxh4 {[%clk 0:00:20]} 44. Ne8+ {[%clk 0:00:04]}  Kc6 {[%clk 0:00:20]} 45. Nf6 {[%clk 0:00:03]}  Nf3 {[%clk 0:00:21]} 46. b5+ {[%clk 0:00:02]}  axb5 {[%clk 0:00:21]} 47. axb5+ {[%clk 0:00:03]}  Kc5 {[%clk 0:00:20]} 48. Nxd5 {[%clk 0:00:04]}  Kxd5 {[%clk 0:00:20]} 49. b6 {[%clk 0:00:04]}  Kc6 {[%clk 0:00:20]} 50. b7 {[%clk 0:00:05]}  Kxb7 {[%clk 0:00:21]} 1/2-1/2


[Site "https://www.chess.com"]

[Event "Titled Tuesday Blitz July 25 Early 2023"]
[White "Vujacic, Igor"]
[Black "Rodriguez Fontecha, Marcos"]
[WhiteFideId "932620"]
[BlackFideId "2256576"]
[WhiteElo "2326"]
[BlackElo "2499"]
[Result "1-0"]
[Round "2"]
[TimeControl "180+2"]
[Date "2023.07.25"]
[WhiteClock "0:00:06"]
[BlackClock "0:00:02"]
[Board "186"]

1. d4 {[%clk 0:03:00]}  Nf6 {[%clk 0:02:59]} 2. Bf4 {[%clk 0:02:59]}  d6 {[%clk 0:02:56]} 3. Nc3 {[%clk 0:02:59]}  g6 {[%clk 0:02:45]} 4. e4 {[%clk 0:02:58]}  Bg7 {[%clk 0:02:46]} 5. Qd2 {[%clk 0:02:58]}  Nc6 {[%clk 0:02:36]} 6. d5 {[%clk 0:02:48]}  Ne5 {[%clk 0:02:34]} 7. f3 {[%clk 0:02:42]}  e6 {[%clk 0:02:28]} 8. Bh6 {[%clk 0:02:19]}  O-O {[%clk 0:02:17]} 9. h4 {[%clk 0:01:57]}  exd5 {[%clk 0:01:59]} 10. Nxd5 {[%clk 0:01:42]}  Nxd5 {[%clk 0:01:58]} 11. exd5 {[%clk 0:01:42]}  Re8 {[%clk 0:01:56]} 12. O-O-O {[%clk 0:01:39]}  Bh8 {[%clk 0:01:41]} 13. h5 {[%clk 0:01:32]}  c6 {[%clk 0:01:16]} 14. hxg6 {[%clk 0:01:14]}  hxg6 {[%clk 0:01:11]} 15. Bg5 {[%clk 0:01:05]}  Bf6 {[%clk 0:00:55]} 16. Bxf6 {[%clk 0:01:00]}  Qxf6 {[%clk 0:00:55]} 17. dxc6 {[%clk 0:01:01]}  bxc6 {[%clk 0:00:53]} 18. Qxd6 {[%clk 0:01:01]}  Be6 {[%clk 0:00:47]} 19. Qa3 {[%clk 0:00:36]}  Rab8 {[%clk 0:00:43]} 20. Bd3 {[%clk 0:00:14]}  Bc4 {[%clk 0:00:29]} 21. Ne2 {[%clk 0:00:10]}  Nxd3+ {[%clk 0:00:25]} 22. cxd3 {[%clk 0:00:08]}  Rxe2 {[%clk 0:00:24]} 23. dxc4 {[%clk 0:00:08]}  Rbxb2 {[%clk 0:00:18]} 24. Rh8+ {[%clk 0:00:05]}  Qxh8 {[%clk 0:00:11]} 25. Rd8+ {[%clk 0:00:03]}  Kg7 {[%clk 0:00:09]} 26. Qxb2+ {[%clk 0:00:03]}  Rxb2 {[%clk 0:00:09]} 27. Rxh8 {[%clk 0:00:03]}  Rxa2 {[%clk 0:00:07]} 28. Rc8 {[%clk 0:00:04]}  Rxg2 {[%clk 0:00:05]} 29. Rxc6 {[%clk 0:00:05]}  a5 {[%clk 0:00:05]} 30. Ra6 {[%clk 0:00:05]}  Rf2 {[%clk 0:00:05]} 31. Rxa5 {[%clk 0:00:04]}  Rxf3 {[%clk 0:00:06]} 32. Kd2 {[%clk 0:00:05]}  f5 {[%clk 0:00:06]} 33. c5 {[%clk 0:00:04]}  Rf4 {[%clk 0:00:06]} 34. c6 {[%clk 0:00:02]}  Rc4 {[%clk 0:00:05]} 35. Ra6 {[%clk 0:00:02]}  g5 {[%clk 0:00:05]} 36. Kd3 {[%clk 0:00:03]}  Rc1 {[%clk 0:00:04]} 37. Kd4 {[%clk 0:00:03]}  Kg6 {[%clk 0:00:05]} 38. Ke5 {[%clk 0:00:02]}  Rc5+ {[%clk 0:00:03]} 39. Kd6 {[%clk 0:00:02]}  Rc1 {[%clk 0:00:04]} 40. c7 {[%clk 0:00:02]}  g4 {[%clk 0:00:03]} 41. Rc6 {[%clk 0:00:02]}  Rd1+ {[%clk 0:00:02]} 42. Ke6 {[%clk 0:00:02]}  Re1+ {[%clk 0:00:02]} 43. Kd7+ {[%clk 0:00:03]}  Kg5 {[%clk 0:00:01]} 44. c8=Q {[%clk 0:00:03]}  Rd1+ {[%clk 0:00:02]} 45. Rd6 {[%clk 0:00:03]}  Re1 {[%clk 0:00:02]} 46. Qg8+ {[%clk 0:00:04]}  Kf4 {[%clk 0:00:03]} 47. Rd4+ {[%clk 0:00:04]}  Re4 {[%clk 0:00:03]} 48. Rxe4+ {[%clk 0:00:03]}  Kxe4 {[%clk 0:00:04]} 49. Ke6 {[%clk 0:00:04]}  Kf3 {[%clk 0:00:03]} 50. Kxf5 {[%clk 0:00:04]}  g3 {[%clk 0:00:04]} 51. Qg4+ {[%clk 0:00:04]}  Kf2 {[%clk 0:00:04]} 52. Qf4+ {[%clk 0:00:05]}  Kg2 {[%clk 0:00:04]} 53. Kg4 {[%clk 0:00:05]}  Kh1 {[%clk 0:00:04]} 54. Kxg3 {[%clk 0:00:04]}  Kg1 {[%clk 0:00:04]} 55. Qf2+ {[%clk 0:00:05]}  Kh1 {[%clk 0:00:02]} 56. Qg2# {[%clk 0:00:06]} 1-0


[Site "https://www.chess.com"]